bitfinex/quotes_BTCUSD_20230831
["timestamp","ask_amount","ask_price","bid_price","bid_amount"]
[1693483600698,0.36607911,27212.0,27209.0,0.02]
[1693483600912,0.36607911,27212.0,27211.0,0.02]
[1693483601130,1.469809,27215.0,27211.0,0.02]
[1693483601329,0.36607911,27214.0,27211.0,0.08022842]
[1693483601538,0.36607911,27214.0,27211.0,0.02]
[1693483603005,0.36607911,27214.0,27212.0,0.01032963]
[1693483603773,1.509744,27216.0,27212.0,0.01032963]
[1693483604020,1.87582311,27216.0,27212.0,0.01032963]
[1693483604278,1.469744,27216.0,27213.0,0.05080666]
[1693483604523,0.08730531,27220.0,27214.0,1.453085]
[1693483604792,0.08730531,27221.0,27215.0,0.08022842]
[1693483605032,0.36607911,27221.0,27216.0,1.65203984]
[1693483605317,0.36607911,27221.0,27217.0,0.06022842]
[1693483605567,0.36607911,27221.0,27217.0,1.01549442]
[1693483605854,1.59671931,27222.0,27217.0,1.01549442]
[1693483605855,0.08730531,27222.0,27217.0,1.01549442]
[1693483606102,1.96278642,27222.0,27217.0,1.18672155]
[1693483606572,1.92278642,27222.0,27217.0,1.18672155]
[1693483607317,0.82200631,27222.0,27217.0,1.18672155]
[1693483607557,0.08730531,27222.0,27217.0,1.62413513]
[1693483608292,0.08730531,27222.0,27218.0,0.16241351]
[1693483608549,0.08730531,27222.0,27218.0,1.11765151]
[1693483608994,0.08730531,27223.0,27219.0,0.02]
[1693483609202,0.82193431,27225.0,27220.0,0.955172]
[1693483609416,1.92264042,27225.0,27222.0,0.02]
[1693483609636,1.92264042,27225.0,27222.0,0.08022842]
[1693483609875,1.92264042,27225.0,27222.0,0.02]
[1693483610524,0.21826327,27225.0,27222.0,0.08022842]
[1693483610885,0.08730531,27225.0,27224.0,0.02]
[1693483611100,0.00411868,27226.0,27225.0,1.452506]
[1693483611325,0.00411868,27226.0,27225.0,1.930008]
[1693483611954,0.00411868,27226.0,27225.0,2.017313]
[1693483613024,0.00411868,27226.0,27225.0,2.76939211]
[1693483613179,0.00411868,27226.0,27225.0,3.12323694]
[1693483614465,0.00411868,27226.0,27225.0,3.42323694]
[1693483615374,0.00411868,27226.0,27225.0,3.06939211]
[1693483617441,0.00411868,27226.0,27225.0,3.35383211]
[1693483617687,0.00411868,27226.0,27225.0,3.3650511]
[1693483621503,0.00411868,27226.0,27225.0,1.73466999]
[1693483621723,0.00411868,27226.0,27225.0,0.50872099]
[1693483621946,0.00411868,27226.0,27225.0,0.975004]
[1693483622159,0.00411868,27226.0,27225.0,1.452506]
[1693483622373,0.00411868,27226.0,27225.0,1.6638758]
[1693483623036,0.00411868,27226.0,27225.0,0.497502]
[1693483623739,0.00411868,27226.0,27225.0,1.81858511]
[1693483623949,0.00411868,27226.0,27225.0,2.38558311]
[1693483624577,0.00411868,27226.0,27225.0,2.77158311]
[1693483627869,0.00411868,27226.0,27225.0,2.75158311]
[1693483628099,0.00411868,27226.0,27225.0,3.11766222]
[1693483631455,0.0208,27228.0,27227.0,0.406]
[1693483631680,0.0208,27231.0,27230.0,0.446]
[1693483631838,0.0208,27231.0,27230.0,3.16276353]
[1693483632040,0.0208,27231.0,27230.0,4.07736311]
[1693483632288,0.0208,27231.0,27230.0,4.26870855]
[1693483632462,0.0208,27231.0,27230.0,4.57206443]
[1693483632759,0.0208,27231.0,27230.0,4.51183601]
[1693483633945,0.0208,27233.0,27232.0,0.406]
[1693483634099,0.0208,27233.0,27232.0,3.55977411]
[1693483634308,0.0208,27233.0,27232.0,3.66331415]
[1693483634501,0.0208,27233.0,27232.0,3.09480504]
[1693483634707,0.16718341,27233.0,27232.0,0.20357]
[1693483634918,0.0208,27233.0,27232.0,0.02]
[1693483635127,0.0208,27233.0,27232.0,0.974758]
[1693483635544,0.0208,27233.0,27232.0,2.20398431]
[1693483635971,0.0208,27233.0,27232.0,2.69136331]
[1693483636173,0.0208,27233.0,27232.0,3.22250784]
[1693483636382,0.0208,27233.0,27232.0,3.52250784]
[1693483636826,0.0208,27233.0,27232.0,2.29304973]
[1693483637029,0.0208,27233.0,27232.0,1.63208073]
[1693483637434,0.0208,27233.0,27232.0,2.86153884]
[1693483637640,0.0208,27233.0,27232.0,2.10945973]
[1693483639607,0.0208,27233.0,27232.0,1.63208073]
[1693483639810,0.0208,27233.0,27232.0,1.2845262]
[1693483640022,0.0208,27233.0,27232.0,2.12798431]
[1693483640495,0.0208,27233.0,27232.0,2.31158431]
[1693483642111,0.0208,27233.0,27232.0,1.9455052]
[1693483642318,0.0208,27233.0,27232.0,2.25707432]
[1693483642929,0.0208,27233.0,27232.0,3.48653243]
[1693483643137,0.0208,27233.0,27232.0,3.58733243]
[1693483643352,0.0208,27236.0,27235.0,0.4057682]
[1693483643561,0.0208,27236.0,27235.0,4.18940855]
[1693483643770,0.0208,27236.0,27235.0,4.35518013]
[1693483644233,0.0208,27237.0,27235.0,4.37608013]
[1693483644452,0.0208,27244.0,27241.0,0.0197682]
[1693483644669,0.0208,27244.0,27241.0,2.70153655]
[1693483644856,0.0208,27244.0,27241.0,2.62153993]
[1693483645351,0.0208,27244.0,27241.0,3.00753993]
[1693483645561,0.0208,27244.0,27241.0,0.777221]
[1693483645770,0.0109,27242.0,27241.0,0.777221]
[1693483646196,0.0109,27242.0,27241.0,0.3]
[1693483646403,0.0109,27242.0,27241.0,0.0197682]
[1693483646628,1.11113911,27242.0,27237.0,0.3]
[1693483646837,0.1008,27240.0,27237.0,0.1347873]
[1693483647047,0.24718341,27240.0,27237.0,0.0197682]
[1693483647228,0.1008,27240.0,27237.0,0.0197682]
[1693483647429,1.83448811,27241.0,27237.0,0.4970562]
[1693483647430,1.468409,27241.0,27237.0,0.4970562]
[1693483648153,0.36607911,27240.0,27237.0,0.0197682]
[1693483648362,0.734241,27239.0,27237.0,0.0197682]
[1693483648569,0.734231,27240.0,27237.0,0.06947752]
[1693483648772,0.734196,27241.0,27237.0,0.54676652]
[1693483648773,1.468394,27241.0,27237.0,0.54676652]
[1693483648978,0.734196,27241.0,27237.0,0.54676652]
[1693483649410,1.468394,27241.0,27237.0,0.54676652]
[1693483650042,1.479242,27242.0,27237.0,1.02405752]
[1693483650255,1.84531011,27242.0,27238.0,0.15013535]
[1693483650486,1.84531011,27242.0,27238.0,0.62740635]
[1693483650697,0.0109,27242.0,27238.0,1.10468035]
[1693483650908,0.0109,27242.0,27238.0,1.58195435]
[1693483651329,0.0109,27242.0,27238.0,1.64218277]
[1693483651542,0.0109,27242.0,27240.0,0.0197682]
[1693483651812,0.0109,27242.0,27241.0,1.4514312]
[1693483652661,0.0109,27242.0,27241.0,2.50351031]
[1693483652865,0.0109,27242.0,27241.0,2.60431031]
[1693483653719,0.0109,27242.0,27241.0,2.11751031]
[1693483653931,0.0109,27242.0,27241.0,1.2742102]
[1693483654139,0.0109,27242.0,27241.0,0.0197682]
[1693483655813,0.0109,27242.0,27241.0,0.11719272]
[1693483656553,0.0109,27242.0,27241.0,0.59441372]
[1693483656803,0.0109,27242.0,27241.0,1.07163472]
[1693483657767,0.0109,27242.0,27241.0,0.0197682]
[1693483658639,0.0109,27242.0,27241.0,0.9742102]
[1693483658858,1.11113911,27242.0,27239.0,0.0197682]
[1693483659065,1.84529911,27242.0,27239.0,0.0197682]
[1693483659266,1.83529911,27242.0,27239.0,0.0197682]
[1693483659542,1.46922,27242.0,27239.0,0.0197682]
[1693483659749,0.73506,27242.0,27239.0,0.4970232]
[1693483659960,0.73506,27242.0,27239.0,0.17492552]
[1693483660166,1.46922,27242.0,27239.0,0.17492552]
[1693483660579,2.56945911,27242.0,27239.0,0.17492552]
[1693483660792,2.56945911,27242.0,27239.0,0.0197682]
[1693483661660,1.46922,27242.0,27239.0,0.0197682]
[1693483663594,0.0009,27242.0,27239.0,0.4970242]
[1693483663797,0.0009,27242.0,27239.0,1.12943452]
[1693483664030,0.0009,27242.0,27239.0,0.9742802]
[1693483664477,1.469225,27242.0,27239.0,0.4970242]
[1693483664735,0.73506,27242.0,27239.0,0.4970242]
[1693483665161,0.0009,27242.0,27239.0,0.9742802]
[1693483665587,0.0009,27242.0,27241.0,0.0197682]
[1693483665800,0.0009,27242.0,27241.0,1.7514312]
[1693483666010,0.0009,27242.0,27241.0,2.2286522]
[1693483666624,0.0009,27242.0,27241.0,2.59473131]
[1693483667959,0.0009,27242.0,27241.0,1.7514312]
[1693483668789,0.0009,27242.0,27241.0,1.97429792]
[1693483670601,0.0009,27242.0,27241.0,2.34037703]
[1693483670779,0.0009,27242.0,27241.0,2.44117703]
[1693483671541,0.0009,27242.0,27241.0,2.82717703]
[1693483673381,0.0208,27244.0,27243.0,0.4057682]
[1693483673633,0.0208,27244.0,27243.0,4.16395553]
[1693483673818,0.0208,27244.0,27243.0,4.43002711]
[1693483674224,0.0209,27250.0,27243.0,4.43002711]
[1693483674225,0.0209,27250.0,27249.0,0.0197682]
[1693483674420,0.0209,27250.0,27249.0,2.74039973]
[1693483674624,0.0209,27250.0,27249.0,2.98017131]
[1693483674840,0.0209,27250.0,27249.0,3.07582938]
[1693483675271,0.0209,27250.0,27249.0,3.17662938]
[1693483675484,0.0209,27250.0,27249.0,3.36010938]
[1693483676218,0.0209,27250.0,27249.0,1.84666927]
[1693483677256,0.0209,27250.0,27249.0,2.21274838]
[1693483677480,0.0209,27250.0,27249.0,3.07582938]
[1693483677894,0.0209,27250.0,27249.0,3.17662938]
[1693483678980,0.0209,27250.0,27249.0,3.67371038]
[1693483679184,0.0209,27250.0,27249.0,3.65371038]
[1693483680224,0.0209,27252.0,27251.0,0.0197682]
[1693483680436,0.0209,27252.0,27251.0,3.32369803]
[1693483680814,0.0209,27252.0,27251.0,3.80074403]
[1693483681172,0.0209,27252.0,27251.0,3.30369803]
[1693483681493,0.0209,27252.0,27251.0,2.91769803]
[1693483683379,0.0209,27252.0,27251.0,3.30369803]
[1693483683847,0.0209,27252.0,27251.0,2.2279522]
[1693483684052,0.0209,27252.0,27251.0,1.7509062]
[1693483685110,0.0209,27252.0,27251.0,2.60378531]
[1693483685973,0.0209,27252.0,27251.0,1.7509062]
[1693483687389,0.0209,27252.0,27251.0,1.8517062]
[1693483687591,0.0209,27252.0,27251.0,2.93253604]
[1693483690234,0.0209,27252.0,27251.0,3.40958204]
[1693483690447,0.0209,27252.0,27251.0,3.61302204]
[1693483691913,0.0208,27253.0,27251.0,3.63302204]
[1693483692128,0.0208,27253.0,27252.0,0.79184731]
[1693483692334,0.0208,27253.0,27252.0,2.7594901]
[1693483693380,0.0208,27253.0,27252.0,2.7803901]
[1693483693561,0.0208,27253.0,27252.0,2.9853901]
[1693483693803,0.0208,27254.0,27253.0,0.0197682]
[1693483694022,0.0208,27254.0,27253.0,2.71853838]
[1693483694286,0.0209,27259.0,27258.0,0.0197682]
[1693483694501,0.0209,27259.0,27258.0,3.61749573]
[1693483694702,0.0209,27259.0,27258.0,3.55726731]
[1693483695336,0.0209,27259.0,27258.0,3.74067731]
[1693483695545,0.0209,27259.0,27258.0,4.08942804]
[1693483697473,0.0209,27259.0,27258.0,4.14942804]
[1693483697689,0.0209,27259.0,27258.0,4.15942804]
[1693483698355,0.16728341,27259.0,27258.0,0.6901022]
[1693483698568,0.16728341,27259.0,27258.0,0.0297682]
[1693483698779,0.0209,27259.0,27258.0,0.9836162]
[1693483698999,0.0209,27259.0,27258.0,1.34969531]
[1693483699253,0.0209,27259.0,27258.0,1.82661931]
[1693483699459,0.0209,27259.0,27258.0,2.40536124]
[1693483699889,0.0209,27259.0,27258.0,2.70536124]
[1693483700772,0.0209,27259.0,27258.0,2.78536124]
[1693483701402,0.0209,27259.0,27258.0,2.96875124]
[1693483703430,0.0209,27259.0,27258.0,2.90875124]
[1693483703650,0.0209,27259.0,27258.0,2.88875124]
[1693483703864,0.0209,27259.0,27258.0,2.50275124]
[1693483704070,0.0209,27259.0,27258.0,2.31000931]
[1693483705129,0.0209,27259.0,27258.0,2.69600931]
[1693483705757,0.0209,27259.0,27258.0,3.17293331]
[1693483706357,0.0209,27259.0,27258.0,2.69600931]
[1693483706568,0.0209,27259.0,27258.0,2.31000931]
[1693483708029,0.0209,27259.0,27258.0,0.3297682]
[1693483708240,0.0209,27259.0,27258.0,0.8066922]
[1693483708663,0.0209,27259.0,27258.0,1.7605402]
[1693483708867,0.0209,27259.0,27258.0,2.51261931]
[1693483709077,0.0209,27259.0,27258.0,2.82165364]
[1693483709722,0.0209,27259.0,27258.0,2.43565364]
[1693483709930,0.0209,27259.0,27258.0,1.2836162]
[1693483710772,0.0209,27259.0,27258.0,0.8066922]
[1693483710982,0.0209,27259.0,27258.0,1.2836162]
[1693483711200,0.0209,27259.0,27258.0,0.3297682]
[1693483711416,0.0209,27259.0,27258.0,0.01]
[1693483711633,2.222006,27259.0,27258.0,0.01]
[1693483712338,2.297406,27259.0,27258.0,0.01]
[1693483713366,0.0209,27259.0,27258.0,0.01]
[1693483713973,0.0209,27259.0,27258.0,0.486924]
[1693483714189,0.0209,27259.0,27258.0,0.68821532]
[1693483714617,0.0209,27259.0,27258.0,0.21129132]
[1693483715679,0.0209,27259.0,27258.0,0.01]
[1693483716098,2.297406,27259.0,27258.0,0.01]
[1693483716302,1.563704,27259.0,27258.0,0.01]
[1693483716598,0.0963,27259.0,27258.0,0.01]
[1693483716815,0.0209,27259.0,27258.0,0.01]
[1693483717070,0.0209,27259.0,27258.0,0.13836642]
[1693483719903,0.0209,27259.0,27258.0,0.01]
[1693483720276,0.754602,27259.0,27258.0,0.01]
[1693483720505,0.0209,27259.0,27258.0,0.01]
[1693483723039,0.0209,27259.0,27258.0,1.5359402]
[1693483723253,0.0209,27259.0,27258.0,1.8359402]
[1693483723428,0.0209,27259.0,27258.0,2.88790633]
[1693483724457,0.0209,27259.0,27258.0,2.50190633]
[1693483728163,0.0209,27259.0,27258.0,2.88790633]
[1693483728820,0.0209,27259.0,27258.0,2.50190633]
[1693483729674,0.0209,27259.0,27258.0,2.88790633]
[1693483731577,0.0209,27259.0,27258.0,1.72509531]
[1693483731805,0.0209,27259.0,27258.0,0.8820922]
[1693483732499,0.0209,27259.0,27258.0,1.3590162]
[1693483733111,0.0209,27259.0,27258.0,1.2836162]
[1693483734196,0.0209,27259.0,27258.0,0.01]
[1693483734396,0.91703424,27259.0,27258.0,0.01]
[1693483734606,2.42795436,27259.0,27258.0,0.01]
[1693483735720,2.35255436,27259.0,27258.0,0.01]
[1693483735969,0.23893242,27259.0,27258.0,0.01]
[1693483736183,0.10838406,27259.0,27258.0,0.06821102]
[1693483737044,0.23893242,27259.0,27258.0,0.06821102]
[1693483737255,2.35255436,27259.0,27258.0,0.01]
[1693483737662,2.39607048,27259.0,27258.0,0.01]
[1693483738278,1.87899034,27259.0,27258.0,0.01]
[1693483738484,1.66236848,27259.0,27258.0,0.01]
[1693483738700,3.09768109,27259.0,27258.0,0.01]
[1693483738917,2.51402138,27259.0,27258.0,0.01]
[1693483739121,0.0209,27259.0,27258.0,1.34969531]
[1693483739335,0.0209,27259.0,27258.0,1.16627833]
[1693483739760,0.0209,27259.0,27258.0,2.08468144]
[1693483739976,0.0209,27259.0,27258.0,2.19306844]
[1693483740180,0.0209,27259.0,27258.0,2.49306844]
[1693483740600,0.0209,27259.0,27258.0,2.87906844]
[1693483741021,0.0209,27259.0,27258.0,2.49306844]
[1693483741241,0.0209,27259.0,27258.0,0.4381552]
[1693483741449,0.0209,27259.0,27258.0,0.418387]
[1693483741659,0.0209,27259.0,27258.0,0.118387]
[1693483741865,0.0209,27259.0,27258.0,0.01]
[1693483742295,0.10838644,27259.0,27258.0,0.01]
[1693483742521,0.2396161,27259.0,27258.0,0.01]
[1693483742937,1.86990655,27259.0,27258.0,0.01]
[1693483743144,1.69493366,27259.0,27258.0,0.01]
[1693483744007,0.02,27254.0,27247.0,0.59385973]
[1693483744228,0.733893,27252.0,27246.0,0.9740212]
[1693483744454,0.0754,27250.0,27246.0,0.0197682]
[1693483744671,0.14638341,27249.0,27246.0,0.06946082]
[1693483745104,0.14638341,27249.0,27246.0,0.4969012]
[1693483745339,0.04,27251.0,27246.0,0.0197682]
[1693483745549,0.18638341,27251.0,27246.0,0.4969012]
[1693483745790,0.04,27251.0,27246.0,0.4969012]
[1693483746465,0.18638341,27251.0,27246.0,0.0197682]
[1693483746676,0.18638341,27251.0,27247.0,0.04969052]
[1693483746677,0.04,27251.0,27247.0,0.04969052]
[1693483746926,0.04,27251.0,27248.0,0.477096]
[1693483747843,0.04,27251.0,27248.0,1.029595]
[1693483748501,0.0602318,27253.0,27248.0,1.506694]
[1693483748718,0.0602318,27253.0,27249.0,0.20334845]
[1693483748975,0.0602318,27253.0,27249.0,0.68042245]
[1693483749194,0.02,27251.0,27249.0,0.20334845]
[1693483749609,0.02,27251.0,27248.0,0.954189]
[1693483750269,0.849255,27254.0,27248.0,0.954189]
[1693483750488,0.02,27253.0,27249.0,0.06022842]
[1693483750707,1.1512956,27255.0,27251.0,0.0197682]
[1693483750708,0.1946,27255.0,27251.0,0.0197682]
[1693483750919,0.1946,27255.0,27252.0,1.05144082]
[1693483751140,0.0602318,27257.0,27252.0,1.11166924]
[1693483751587,0.1477044,27257.0,27252.0,1.01428042]
[1693483752389,0.1477044,27257.0,27252.0,0.954052]
[1693483752801,0.0602318,27257.0,27252.0,1.49130942]
[1693483752979,0.0602318,27257.0,27253.0,0.23635196]
[1693483753180,0.0602318,27257.0,27254.0,0.47699]
[1693483753405,0.0602318,27257.0,27253.0,1.19035196]
[1693483753607,0.0754,27256.0,27251.0,1.2738472]
[1693483753818,0.0754,27256.0,27251.0,0.3]
[1693483753819,0.0754,27254.0,27251.0,0.3]
[1693483754018,0.0754,27254.0,27250.0,0.3]
[1693483754019,0.22178341,27254.0,27250.0,0.3]
[1693483754231,0.95562741,27254.0,27250.0,0.3]
[1693483754421,0.809244,27254.0,27250.0,0.3197682]
[1693483754541,0.0754,27254.0,27251.0,0.0197682]
[1693483755646,0.0754,27254.0,27250.0,0.95216312]
[1693483755847,0.0754,27254.0,27251.0,0.0197682]
[1693483756113,0.0754,27255.0,27251.0,0.4968132]
[1693483757090,0.733794,27256.0,27251.0,0.4968132]
[1693483757293,1.8018393,27257.0,27251.0,0.4968132]
[1693483757294,0.8612286,27257.0,27252.0,0.14489683]
[1693483757493,0.8612286,27257.0,27252.0,1.15916225]
[1693483757494,0.40607911,27257.0,27252.0,1.15916225]
[1693483757970,0.04,27257.0,27252.0,1.15916225]
[1693483758370,0.04,27257.0,27252.0,1.57596283]
[1693483758574,0.0874726,27258.0,27253.0,0.1595731]
[1693483758784,0.0874726,27258.0,27254.0,1.99755162]
[1693483759011,0.0209,27259.0,27255.0,0.68584731]
[1693483759215,0.0209,27259.0,27256.0,1.51086162]
[1693483759432,0.0209,27259.0,27258.0,0.5063682]
[1693483759648,0.0209,27259.0,27258.0,2.66344773]
[1693483759857,0.0209,27259.0,27258.0,3.14037173]
[1693483760071,0.0209,27259.0,27258.0,3.22696031]
[1693483760342,0.0209,27259.0,27258.0,3.12636031]
[1693483760555,0.0209,27259.0,27258.0,3.30146043]
[1693483762220,0.0209,27259.0,27258.0,3.12636031]
[1693483764548,0.0209,27259.0,27258.0,1.78651231]
[1693483764823,0.0209,27259.0,27258.0,0.7966922]
[1693483765032,0.0209,27259.0,27256.0,0.9736692]
[1693483765238,0.0209,27259.0,27257.0,0.0197682]
[1693483765467,0.0209,27259.0,27257.0,0.4967092]
[1693483765881,0.0209,27259.0,27256.0,0.9736642]
[1693483766092,0.0209,27259.0,27257.0,0.0197682]
[1693483766533,0.0209,27259.0,27257.0,0.4967092]
[1693483766805,0.0209,27259.0,27257.0,0.64177282]
[1693483768935,0.0209,27259.0,27257.0,0.4967092]
[1693483769564,0.0209,27259.0,27256.0,0.0197682]
[1693483769767,0.754605,27259.0,27256.0,0.0197682]
[1693483771777,0.0209,27259.0,27256.0,0.0197682]
[1693483771978,0.0209,27259.0,27256.0,1.4506412]
[1693483772185,0.0209,27259.0,27258.0,0.0197682]
[1693483772393,0.0209,27259.0,27258.0,1.4505402]
[1693483779921,0.0209,27259.0,27258.0,1.7505402]
[1693483781553,0.0209,27259.0,27258.0,2.11661931]
[1693483781775,0.0209,27259.0,27258.0,2.50261931]
[1693483781972,0.0209,27259.0,27258.0,2.86508364]
[1693483783640,0.0209,27259.0,27258.0,2.90554386]
[1693483783801,0.02,27260.0,27259.0,0.60239566]
[1693483783979,0.02,27260.0,27259.0,2.94655531]
[1693483784851,0.02,27260.0,27259.0,3.01147531]
[1693483785060,0.02,27260.0,27259.0,3.14800247]
[1693483785263,0.02,27260.0,27259.0,2.92548247]
[1693483786287,0.0209,27261.0,27260.0,0.0197682]
[1693483786492,0.0209,27261.0,27260.0,2.65454177]
[1693483786711,0.0209,27264.0,27263.0,0.0197682]
[1693483786934,0.0209,27264.0,27263.0,3.33685573]
[1693483787083,0.0209,27264.0,27263.0,3.57662731]
[1693483787724,0.0209,27264.0,27263.0,3.65504731]
[1693483787910,0.0209,27264.0,27263.0,3.65444731]
[1693483788237,0.0209,27264.0,27263.0,3.93909164]
[1693483788447,0.0209,27264.0,27263.0,3.91909164]
[1693483788859,0.0209,27264.0,27263.0,3.46315564]
[1693483791099,0.0209,27264.0,27263.0,3.64653564]
[1693483793063,0.0209,27264.0,27263.0,2.61409131]
[1693483794483,0.0209,27264.0,27263.0,3.00009131]
[1693483797219,0.0209,27264.0,27263.0,0.3406682]
[1693483797628,0.0209,27264.0,27263.0,0.8175042]
[1693483799616,0.0209,27264.0,27263.0,1.2943402]
[1693483799786,0.0209,27264.0,27263.0,1.47145832]
[1693483799996,0.0209,27264.0,27263.0,2.31437343]
[1693483802191,0.16728341,27264.0,27263.0,0.0406682]
[1693483802400,0.754468,27264.0,27263.0,0.0197682]
[1693483802949,1.488036,27264.0,27263.0,0.0197682]
[1693483803152,0.754468,27264.0,27263.0,0.0197682]
[1693483803352,0.0209,27264.0,27263.0,0.14711882]
[1693483804091,0.0209,27264.0,27263.0,0.62395482]
[1693483804529,0.0209,27264.0,27263.0,0.14711882]
[1693483804755,0.0209,27264.0,27261.0,0.3]
[1693483804960,0.0209,27264.0,27260.0,0.0197682]
[1693483804961,0.0754,27262.0,27260.0,0.3]
[1693483805165,1.467296,27261.0,27258.0,0.0197682]
[1693483805387,0.14638341,27260.0,27259.0,0.0197682]
[1693483805595,1.61367941,27261.0,27259.0,0.0197682]
[1693483805800,1.467296,27261.0,27259.0,0.0197682]
[1693483806015,0.51246252,27260.0,27251.0,0.0874542]
[1693483806221,0.06,27256.0,27248.0,0.21863552]
[1693483806428,0.06,27256.0,27248.0,0.84316211]
[1693483806429,0.733864,27253.0,27248.0,0.84316211]
[1693483806632,0.733864,27253.0,27247.0,0.552504]
[1693483806633,0.14638341,27252.0,27247.0,0.552504]
[1693483806840,1.61418541,27252.0,27247.0,0.477104]
[1693483807044,1.61418541,27252.0,27246.0,0.98399078]
[1693483807249,1.61418541,27252.0,27247.0,0.14611388]
[1693483808056,0.733893,27252.0,27247.0,0.14611388]
[1693483809101,0.733893,27252.0,27248.0,0.3]
[1693483809712,2.201677,27252.0,27246.0,0.02974178]
[1693483809916,2.34806041,27252.0,27246.0,0.32974178]
[1693483810026,2.34806041,27252.0,27246.0,0.3]
[1693483810234,2.34806041,27252.0,27246.0,0.36022842]
[1693483810642,2.34806041,27252.0,27246.0,0.3]
[1693483810844,2.34806041,27252.0,27246.0,0.36022842]
[1693483811040,2.34806041,27252.0,27247.0,0.3]
[1693483811241,2.201677,27252.0,27246.0,0.06022842]
[1693483811447,2.34806041,27252.0,27246.0,0.06022842]
[1693483811655,2.34806041,27252.0,27246.0,0.19459895]
[1693483811854,2.34806041,27252.0,27247.0,0.3]
[1693483812095,2.201677,27252.0,27247.0,0.3]
[1693483812700,1.467784,27252.0,27247.0,0.36022842]
[1693483812941,1.467784,27252.0,27246.0,0.740431]
[1693483813093,1.61416741,27252.0,27246.0,0.80065942]
[1693483813256,1.61416741,27252.0,27246.0,0.97173075]
[1693483814683,2.34806041,27252.0,27246.0,0.97173075]
[1693483815113,2.34806041,27252.0,27246.0,0.80065942]
[1693483815588,2.34806041,27252.0,27246.0,0.3]
[1693483815795,2.34806041,27252.0,27246.0,0.06022842]
[1693483819434,0.1006,27250.0,27246.0,0.06022842]
[1693483819631,0.1006,27250.0,27244.0,0.02915689]
[1693483819632,2.201927,27249.0,27244.0,0.02915689]
[1693483819855,2.34831041,27249.0,27245.0,0.07696329]
[1693483820045,2.34831041,27249.0,27245.0,0.37696329]
[1693483820046,2.201927,27249.0,27245.0,0.37696329]
[1693483820175,2.201927,27249.0,27245.0,0.3]
[1693483820594,2.201927,27249.0,27243.0,0.440476]
[1693483820794,2.34831041,27249.0,27244.0,0.3]
[1693483821053,2.201927,27249.0,27244.0,0.3]
[1693483821298,2.201927,27249.0,27244.0,0.49216206]
[1693483821591,2.34831041,27249.0,27242.0,0.74065657]
[1693483821914,2.34831041,27249.0,27243.0,0.06022842]
[1693483822093,1.46795,27249.0,27243.0,0.80069242]
[1693483822240,1.46795,27249.0,27244.0,0.19074281]
[1693483822441,1.46795,27249.0,27244.0,0.25097123]
[1693483822642,1.46795,27249.0,27244.0,0.19074281]
[1693483826300,0.733973,27249.0,27244.0,0.63120581]
[1693483826689,0.733953,27250.0,27245.0,0.3]
[1693483826982,1.467863,27251.0,27246.0,0.13716688]
[1693483827190,0.733947,27250.0,27246.0,0.4441953]
[1693483827403,0.733947,27250.0,27246.0,0.38396688]
[1693483827609,1.467868,27251.0,27246.0,0.82439688]
[1693483827766,1.467868,27251.0,27246.0,0.4441953]
[1693483827972,1.467868,27251.0,27247.0,0.16250713]
[1693483829425,2.201809,27251.0,27247.0,0.16250713]
[1693483830924,1.543409,27250.0,27247.0,0.16250713]
[1693483831140,1.543409,27250.0,27246.0,0.38396688]
[1693483832760,1.543409,27250.0,27247.0,0.01083505]
[1693483833746,0.0755,27248.0,27247.0,0.01083505]
[1693483833962,0.809498,27248.0,27247.0,0.01083505]
[1693483834192,0.733998,27248.0,27247.0,0.01083505]
[1693483837862,2.277494,27248.0,27247.0,0.01083505]
[1693483839418,0.80946,27250.0,27247.0,0.03659856]
[1693483839609,1.543423,27250.0,27247.0,0.03659856]
[1693483842237,0.36607911,27252.0,27247.0,0.45125005]
[1693483842238,0.733911,27252.0,27247.0,0.45125005]
[1693483842445,0.733911,27252.0,27247.0,0.51147847]
[1693483842446,1.467817,27252.0,27247.0,0.51147847]
[1693483843076,1.467817,27252.0,27247.0,0.45125005]
[1693483843291,1.543317,27252.0,27247.0,0.45125005]
[1693483843501,1.543317,27252.0,27248.0,0.15788831]
[1693483843914,1.543317,27252.0,27249.0,0.01066895]
[1693483844316,2.277223,27252.0,27249.0,0.01066895]
[1693483845110,2.277223,27252.0,27246.0,1.127638]
[1693483845314,2.42360641,27252.0,27246.0,1.127636]
[1693483845518,1.68969541,27252.0,27246.0,1.3360395]
[1693483845720,1.68969541,27252.0,27246.0,1.83669892]
[1693483846077,0.95578941,27252.0,27246.0,2.20277803]
[1693483846289,0.0755,27252.0,27247.0,0.81230753]
[1693483846544,1.0723,27256.0,27251.0,0.880698]
[1693483846736,0.0874726,27258.0,27252.0,0.14829822]
[1693483846737,1.582993,27258.0,27252.0,0.14829822]
[1693483846916,2.316739,27258.0,27252.0,0.83782422]
[1693483848091,2.46312241,27258.0,27252.0,0.83782422]
[1693483848300,2.46312241,27258.0,27252.0,0.39749822]
[1693483849326,2.55059501,27258.0,27252.0,0.39749822]
[1693483849525,2.55059501,27258.0,27253.0,0.13536872]
[1693483849722,2.4042116,27258.0,27253.0,0.13536872]
[1693483850323,0.0874726,27257.0,27253.0,0.13536872]
[1693483850593,1.467576,27256.0,27253.0,0.13536872]
[1693483851753,1.5550206,27257.0,27253.0,0.13536872]
[1693483851949,0.0874726,27257.0,27254.0,0.09129625]
[1693483852231,0.9404549,27258.0,27254.0,0.09129625]
[1693483852232,1.8016725,27258.0,27254.0,0.09129625]
[1693483853250,1.7616725,27258.0,27254.0,0.09129625]
[1693483853859,2.4954235,27258.0,27254.0,0.09129625]
[1693483854148,2.5354235,27258.0,27254.0,0.09129625]
[1693483854384,2.4042146,27258.0,27254.0,0.09129625]
[1693483854588,2.3642146,27258.0,27252.0,1.129848]
[1693483854767,2.51059801,27258.0,27252.0,1.49592711]
[1693483855177,2.64180691,27258.0,27252.0,1.55615553]
[1693483855390,2.51059801,27258.0,27252.0,1.55615553]
[1693483855605,2.51059401,27258.0,27252.0,1.55615553]
[1693483855814,1.77684701,27258.0,27253.0,0.60347755]
[1693483856015,1.6304636,27258.0,27253.0,0.60347755]
[1693483856219,1.6304636,27258.0,27253.0,0.60348255]
[1693483856984,1.5549636,27258.0,27253.0,0.60348255]
[1693483857742,2.2887106,27258.0,27253.0,0.60348255]